Workbook

Sheet Grocery list
L1: =calculations!M9 -> DAIRY TOTAL
B3: GROCERY LIST
B4: DONE | C4: ITEM | D4: STORE | E4: CATEGORY | F4: QTY | G4: UNIT | H4: UNIT PRICE | I4: TOTAL | J4: COMMENT | L4: =calculations!M6 -> SEAFOOD TOTAL
B5: 1 | C5: Oranges | D5: Grocery | E5: Produce | F5: 2 | G5: lbs | H5: $2.99 | I5: =IFERROR(List[[#This Row],[QTY]]*List[[#This Row],[UNIT PRICE]],"") -> $5.98 | L5: =calculations!L6 -> $109
B6: 1 | C6: Apples | D6: Orchard | E6: Produce | F6: 3 | G6: lbs | H6: $1.99 | I6: =IFERROR(List[[#This Row],[QTY]]*List[[#This Row],[UNIT PRICE]],"") -> $5.97 | J6: Have coupon
C7: Bananas | D7: Grocery | E7: Produce | F7: 1 | G7: bunch | H7: $3.99 | I7: =IFERROR(List[[#This Row],[QTY]]*List[[#This Row],[UNIT PRICE]],"") -> $3.99 | L7: =calculations!M7 -> MEAT TOTAL
C8: Lettuce | D8: Market | E8: Produce | F8: 2 | G8: head | H8: $2.29 | I8: =IFERROR(List[[#This Row],[QTY]]*List[[#This Row],[UNIT PRICE]],"") -> $4.58 | L8: =calculations!L7 -> $80
C9: Tomatoes | D9: Market | E9: Produce | F9: 4 | G9: lbs | H9: $3.49 | I9: =IFERROR(List[[#This Row],[QTY]]*List[[#This Row],[UNIT PRICE]],"") -> $13.96
C10: Squash | D10: Market | E10: Produce | F10: 2 | G10: each | H10: $1.50 | I10: =IFERROR(List[[#This Row],[QTY]]*List[[#This Row],[UNIT PRICE]],"") -> $3.00 | L10: =calculations!M8 -> PRODUCE TOTAL
C11: Celery | D11: Grocery | E11: Produce | F11: 2 | G11: bunch | H11: $1.99 | I11: =IFERROR(List[[#This Row],[QTY]]*List[[#This Row],[UNIT PRICE]],"") -> $3.98 | L11: =calculations!L8 -> $45
C12: Cucumber | D12: Market | E12: Produce | F12: 1 | G12: lbs | H12: $2.29 | I12: =IFERROR(List[[#This Row],[QTY]]*List[[#This Row],[UNIT PRICE]],"") -> $2.29
C13: Mushrooms | D13: Grocery | E13: Produce | F13: 0.5 | G13: lbs | H13: $2.25 | I13: =IFERROR(List[[#This Row],[QTY]]*List[[#This Row],[UNIT PRICE]],"") -> $1.13 | J13: Large portabella | L13: =calculations!M9 -> DAIRY TOTAL
C14: Milk | D14: Home delivery | E14: Dairy | F14: 2 | G14: gal | H14: $3.99 | I14: =IFERROR(List[[#This Row],[QTY]]*List[[#This Row],[UNIT PRICE]],"") -> $7.98 | L14: =calculations!L9 -> $37
C15: Cheese | D15: Home delivery | E15: Dairy | F15: 1 | G15: lbs | H15: $9.99 | I15: =IFERROR(List[[#This Row],[QTY]]*List[[#This Row],[UNIT PRICE]],"") -> $9.99 | J15: Variety of block cheeses
C16: Eggs | D16: Home delivery | E16: Dairy | F16: 2 | G16: doz | H16: $3.50 | I16: =IFERROR(List[[#This Row],[QTY]]*List[[#This Row],[UNIT PRICE]],"") -> $7.00 | L16: =calculations!M3 -> OTHER TOTAL
C17: Cottage cheese | D17: Home delivery | E17: Dairy | F17: 1 | G17: 16 oz | H17: $3.89 | I17: =IFERROR(List[[#This Row],[QTY]]*List[[#This Row],[UNIT PRICE]],"") -> $3.89 | L17: =calculations!L3 -> $0
C18: Sour cream | D18: Home delivery | E18: Dairy | F18: 1 | G18: 8 oz | H18: $2.99 | I18: =IFERROR(List[[#This Row],[QTY]]*List[[#This Row],[UNIT PRICE]],"") -> $2.99
C19: Yogurt | D19: Grocery | E19: Dairy | F19: 1 | G19: 16 oz | H19: $4.99 | I19: =IFERROR(List[[#This Row],[QTY]]*List[[#This Row],[UNIT PRICE]],"") -> $4.99 | J19: Greek with honey | L19: =calculations!M4 -> GROCERY TOTAL
C20: Beef | D20: Market | E20: Meat | F20: 10 | G20: lbs | H20: $7.99 | I20: =IFERROR(List[[#This Row],[QTY]]*List[[#This Row],[UNIT PRICE]],"") -> $79.90 | J20: Bacon wrapped filets | L20: =GroceryTotal -> $271
C21: Wild salmon | D21: Fish market | E21: Seafood | F21: 6 | G21: lbs | H21: $8.99 | I21: =IFERROR(List[[#This Row],[QTY]]*List[[#This Row],[UNIT PRICE]],"") -> $53.94
C22: Alaskan king crab legs | D22: Fish market | E22: Seafood | F22: 5 | G22: lbs | H22: $10.99 | I22: =IFERROR(List[[#This Row],[QTY]]*List[[#This Row],[UNIT PRICE]],"") -> $54.95

Sheet calculations (hidden)
A1: *** Sheet to remain hidden ***
K3: =SUM(List[TOTAL])-SUM(K6:K9) -> $0.00 | L3: =ROUND(K3,0) -> $0 | M3: OTHER TOTAL
L4: =ROUNDUP(SUM(List[TOTAL]),0) -> $271 | M4: GROCERY TOTAL
E6: =IFERROR(INDEX(List[CATEGORY],MATCH(,COUNTIF($E$5:E5,List[CATEGORY]),)),"") -> Produce | F6: =SUMIFS(List[TOTAL],List[CATEGORY],E6) -> 44.875 | G6: =F6+ROW()/1000000 -> 44.875006 | H6: =LARGE($G$6:$G$21,1) -> 108.890009 | I6: =MATCH(H6,$G$6:$G$21,0) -> 4 | J6: =INDEX($E$6:$E$21,$I6) -> Seafood | K6: =INDEX($F$6:$F$21,$I6) -> $108.89 | L6: =IF(M6="","", ROUND(K6,0)) -> $109 | M6: =IF(J6="","", UPPER(J6) & " TOTAL") -> SEAFOOD TOTAL
E7: =IFERROR(INDEX(List[CATEGORY],MATCH(,COUNTIF($E$5:E6,List[CATEGORY]),)),"") -> Dairy | F7: =SUMIFS(List[TOTAL],List[CATEGORY],E7) -> 36.84 | G7: =F7+ROW()/1000000 -> 36.840007 | H7: =LARGE($G$6:$G$21,2) -> 79.900008 | I7: =MATCH(H7,$G$6:$G$21,0) -> 3 | J7: =INDEX($E$6:$E$21,$I7) -> Meat | K7: =INDEX($F$6:$F$21,$I7) -> $79.90 | L7: =IF(M7="","", ROUND(K7,0)) -> $80 | M7: =IF(J7="","", UPPER(J7) & " TOTAL") -> MEAT TOTAL
E8: =IFERROR(INDEX(List[CATEGORY],MATCH(,COUNTIF($E$5:E7,List[CATEGORY]),)),"") -> Meat | F8: =SUMIFS(List[TOTAL],List[CATEGORY],E8) -> 79.9 | G8: 79.900008 | H8: =LARGE($G$6:$G$21,3) -> 44.875006 | I8: =MATCH(H8,$G$6:$G$21,0) -> 1 | J8: =INDEX($E$6:$E$21,$I8) -> Produce | K8: =INDEX($F$6:$F$21,$I8) -> $44.88 | L8: $45 | M8: =IF(J8="","", UPPER(J8) & " TOTAL") -> PRODUCE TOTAL
E9: =IFERROR(INDEX(List[CATEGORY],MATCH(,COUNTIF($E$5:E8,List[CATEGORY]),)),"") -> Seafood | F9: =SUMIFS(List[TOTAL],List[CATEGORY],E9) -> 108.89 | G9: 108.890009 | H9: =LARGE($G$6:$G$21,4) -> 36.840007 | I9: =MATCH(H9,$G$6:$G$21,0) -> 2 | J9: =INDEX($E$6:$E$21,$I9) -> Dairy | K9: =INDEX($F$6:$F$21,$I9) -> $36.84 | L9: $37 | M9: =IF(J9="","", UPPER(J9) & " TOTAL") -> DAIRY TOTAL
E10: =IFERROR(INDEX(List[CATEGORY],MATCH(,COUNTIF($E$5:E9,List[CATEGORY]),)),"") ->  | F10: =SUMIFS(List[TOTAL],List[CATEGORY],E10) -> 0 | G10: 1e-05
E11: =IFERROR(INDEX(List[CATEGORY],MATCH(,COUNTIF($E$5:E10,List[CATEGORY]),)),"") ->  | F11: =SUMIFS(List[TOTAL],List[CATEGORY],E11) -> 0 | G11: 1.1e-05
E12: =IFERROR(INDEX(List[CATEGORY],MATCH(,COUNTIF($E$5:E11,List[CATEGORY]),)),"") ->  | F12: =SUMIFS(List[TOTAL],List[CATEGORY],E12) -> 0 | G12: 1.2e-05
E13: =IFERROR(INDEX(List[CATEGORY],MATCH(,COUNTIF($E$5:E12,List[CATEGORY]),)),"") ->  | F13: =SUMIFS(List[TOTAL],List[CATEGORY],E13) -> 0 | G13: 1.3e-05
E14: =IFERROR(INDEX(List[CATEGORY],MATCH(,COUNTIF($E$5:E13,List[CATEGORY]),)),"") ->  | F14: =SUMIFS(List[TOTAL],List[CATEGORY],E14) -> 0 | G14: 1.4e-05
E15: =IFERROR(INDEX(List[CATEGORY],MATCH(,COUNTIF($E$5:E14,List[CATEGORY]),)),"") ->  | F15: =SUMIFS(List[TOTAL],List[CATEGORY],E15) -> 0 | G15: 1.5e-05
E16: =IFERROR(INDEX(List[CATEGORY],MATCH(,COUNTIF($E$5:E15,List[CATEGORY]),)),"") ->  | F16: =SUMIFS(List[TOTAL],List[CATEGORY],E16) -> 0 | G16: 1.6e-05
E17: =IFERROR(INDEX(List[CATEGORY],MATCH(,COUNTIF($E$5:E16,List[CATEGORY]),)),"") ->  | F17: =SUMIFS(List[TOTAL],List[CATEGORY],E17) -> 0 | G17: 1.7e-05
E18: =IFERROR(INDEX(List[CATEGORY],MATCH(,COUNTIF($E$5:E17,List[CATEGORY]),)),"") ->  | F18: =SUMIFS(List[TOTAL],List[CATEGORY],E18) -> 0 | G18: 1.8e-05
E19: =IFERROR(INDEX(List[CATEGORY],MATCH(,COUNTIF($E$5:E18,List[CATEGORY]),)),"") ->  | F19: =SUMIFS(List[TOTAL],List[CATEGORY],E19) -> 0 | G19: 1.9e-05
E20: =IFERROR(INDEX(List[CATEGORY],MATCH(,COUNTIF($E$5:E19,List[CATEGORY]),)),"") ->  | F20: =SUMIFS(List[TOTAL],List[CATEGORY],E20) -> 0 | G20: 2e-05
E21: =IFERROR(INDEX(List[CATEGORY],MATCH(,COUNTIF($E$5:E20,List[CATEGORY]),)),"") ->  | F21: =SUMIFS(List[TOTAL],List[CATEGORY],E21) -> 0 | G21: 2.1e-05
